[Event "26th Hit Open-A 2022"]
[Site "Nova Gorica"]
[Date "2022.09.21"]
[Round "8.23"]
[White "Zamar Kodelja, Jurij"]
[Black "Verbin, Valentina"]
[Result "1-0"]
[ECO "E26"]
[WhiteElo "2241"]
[BlackElo "2049"]
[Annotator "TA"]
[PlyCount "63"]
[EventDate "2022.09.16"]
[EventType "swiss"]
[EventCountry "SLO"]
[SourceTitle "playchess.com"]
[Source "ChessBase"]
[SourceQuality "1"]
[TimeControl "5400+30"]

{[%evp 13,63,-17,11,-18,37,30,56,34,45,-8,91,39,47,-14,38,-28,16,28,44,60,58,47,148,159,164,148,136,113,382,170,225,192,318,323,472,476,677,670,1268,789,878,876,779,702,29989,29990,29991,29989,29992,29993,29997,29998]} 1. d4 {[%emt 0:00:02]} Nf6 {[%emt 0:03:45]} 2. c4 {[%emt 0:00:52]} e6 {[%emt 0:00:22]} 3. Nc3 {[%emt 0:00:06]} Bb4 {[%emt 0:00:32]} 4. a3 {[%emt 0:00:38]} Bxc3+ {[%emt 0:00:35]} 5. bxc3 {[%emt 0:00:04]} c5 {[%emt 0:00:39]} 6. e3 {[%emt 0:00:25][%cal Be2e3,Be3e4,Be4e5][%mdl 32]} b6 {[%emt 0:00:38]} 7. Bd3 {[%emt 0:00:41]} Nc6 {[%emt 0:01:00]} 8. Ne2 {[%emt 0:00:21] E26: Nimzo-Indian: Sämisch: 5...c5 6 e3.} Ba6 {[%emt 0:01:51]} (8... d6 $11) 9. e4 $1 $14 {[%emt 0:00:31]} Na5 {[%emt 0:03:25]} 10. e5 {[%emt 0:03:48] White is slightly better.} Ng8 {[%emt 0:00:18] [#]} 11. dxc5 $146 {[%emt 0:00:08]} (11. Ng3 $14) ({Predecessor:} 11. Ng3 f5 12. Qe2 cxd4 13. cxd4 Nb3 14. Bxf5 g6 15. Be4 Nxa1 16. Bxa8 Qxa8 17. Ne4 {0-1 (42) Broersma,S (1710)-Honkoop,G (2157) Almelo 2021}) 11... bxc5 {[%emt 0:01:35]} (11... Ne7 $11) 12. Qa4 {[%emt 0:00:07]} (12. Ng3 $16) 12... Qc7 {[%emt 0:03:57]} 13. Be3 {[%emt 0:06:19]} ({Better is} 13. O-O $14) 13... Bb7 $11 {[%emt 0:14:36]} 14. f4 {[%emt 0:01:17]} (14. O-O $1 $14) 14... Ne7 {[%emt 0:08:45]} ({But not} 14... Bc6 15. Qc2 $14) (14... Bxg2 $5 15. Rg1 $8 Bc6 $11) 15. O-O $36 {[%emt 0:02:37][%mdl 2048] Black is under pressure.} O-O {[%emt 0:04:41]} 16. Ng3 {[%emt 0:04:20] Prevents Nf5.} Rac8 {[%emt 0:06:20]} 17. Rae1 {[%emt 0:11:08]} Kh8 {[%emt 0:05:27]} (17... d5 $14) 18. f5 $1 $16 {[%emt 0:01:00] White is more active.} exf5 {[%emt 0:00:41]} 19. Nxf5 {[%emt 0:01:34]} Nxf5 {[%emt 0:02:29]} 20. Rxf5 {[%emt 0:00:06]} g6 $2 {[%emt 0:01:46][%mdl 8192] [#] Black cannot hold the game after this.} (20... d6 $16) 21. Rf2 {[%emt 0:00:33]} (21. Bg5 $142 $1) 21... Kg8 {[%emt 0:06:04] [#]} (21... Bc6 $2 22. Qd1 Kg8 23. Bg5 $18 (23. Bxc5 Bf3 $11)) (21... Rce8 {was called for.}) 22. Bf4 $1 $18 {[%emt 0:08:52][%cal Oe5e6]} Bc6 {[%emt 0:02:08]} (22... Qd8 {is a better defense.} 23. Qc2 f5) 23. Qc2 {[%emt 0:00:36][%cal Oe5e6] aiming for e6!} Qb6 {[%emt 0:00:08]} (23... Qd8 {was necessary.} 24. Bh6 f5 25. exf6 (25. Bxf8 Qxf8 26. e6 Re8 $18) 25... Rxf6) 24. Bh6 {[%emt 0:01:27]} Rfe8 {[%emt 0:00:53]} (24... Qd8 $142 25. Bxf8 Qxf8) 25. Ref1 {[%emt 0:00:35]} Re7 {[%emt 0:01:06]} 26. Qd2 {[%emt 0:04:49] Hoping for Qg5.} Bb7 {[%emt 0:04:03]} 27. Bg5 {[%emt 0:00:38] A strong pair of Bishops.} Rxe5 {[%emt 0:01:19]} 28. Rxf7 {[%emt 0:00:13][%cal Bf2f7,Bf7g7,Bg7h7][%mdl 32] Intending Bh6 and mate.} Ree8 {[%emt 0:12:15]} 29. Bh6 {[%emt 0:00:50] White mates.} Qd6 {[%emt 0:02:08]} 30. Rg7+ {[%emt 0:00:16]} Kh8 {[%emt 0:00:03]} 31. Rff7 {[%emt 0:00:06][%csl LRd7,LRh7]} Nxc4 {[%emt 0:01:51]} 32. Rxh7+ {[%emt 0:00:08] Weighted Error Value: White=0.24 (precise) /Black=0.86} 1-0

[Event "26th Hit Open-A 2022"]
[Site "Nova Gorica"]
[Date "2022.09.21"]
[Round "8.24"]
[White "Zubova, Mariya"]
[Black "Mihelic, Vesna"]
[Result "1/2-1/2"]
[ECO "C60"]
[WhiteElo "2214"]
[BlackElo "2031"]
[Annotator "TA"]
[PlyCount "75"]
[EventDate "2022.09.16"]
[EventType "swiss"]
[EventCountry "SLO"]
[SourceTitle "playchess.com"]
[Source "ChessBase"]
[SourceQuality "1"]
[TimeControl "5400+30"]

{[%evp 16,75,18,11,14,7,44,29,47,41,51,43,68,25,34,32,52,32,64,14,25,10,66,25,13,-87,-84,-97,-97,-89,-88,-85,-97,-88,-94,-88,-94,-60,-43,-33,0,0,0,0,0,0,0,0,0,0,0,0,0,0,0,0,0,5,12833,0,0,-110]} 1. e4 {[%emt 0:00:03]} e5 {[%emt 0:00:05]} 2. Nf3 {[%emt 0:00:03]} Nc6 {[%emt 0:00:05]} 3. Bb5 {[%emt 0:00:05]} g6 {[%emt 0:00:05]} 4. d4 {[%emt 0:02:58]} exd4 {[%emt 0:00:11]} 5. Bg5 {[%emt 0:00:35]} Be7 {[%emt 0:00:42]} 6. Bxe7 {[%emt 0:00:09]} Qxe7 {[%emt 0:00:17]} 7. Bxc6 {[%emt 0:00:11]} dxc6 {[%emt 0:00:22]} 8. Qxd4 {[%emt 0:00:16]} Nf6 {[%emt 0:00:07]} 9. Nc3 {[%emt 0:00:42]} Bg4 {[%emt 0:00:38] C60: Ruy Lopez: Unusual Black 3rd moves and 3...g6.} 10. Nd2 {[%emt 0:00:50]} O-O {[%emt 0:03:34]} 11. h3 {[%emt 0:02:50]} Rfd8 {[%emt 0:02:48] White has an edge.} 12. Qe3 {[%emt 0:00:15] [#]} Bd7 $146 {[%emt 0:06:14]} ({Predecessor:} 12... Be6 13. O-O c5 14. Nf3 b6 15. Rfe1 Re8 16. Qh6 Qf8 17. Qh4 Qg7 18. Rad1 h6 {1-0 (35) Hansen,E (2606)-Mikhalevski,V (2552) Chess.com INT 2021}) 13. O-O {[%emt 0:01:00]} Re8 {[%emt 0:05:49]} 14. Rae1 {[%emt 0:03:35]} b6 {[%emt 0:06:04]} 15. a3 {[%emt 0:04:42]} Bc8 {[%emt 0:02:53]} 16. f4 {[%emt 0:09:09]} Bb7 {[%emt 0:06:40][%cal Of6d5]} 17. Nd1 {[%emt 0:10:58]} (17. e5 $14) 17... c5 {[%emt 0:09:05][%cal Rf6e4]} 18. e5 {[%emt 0:03:16]} Qd7 {[%emt 0:04:05]} (18... Rad8 $11) 19. Qf2 {[%emt 0:01:54]} (19. f5 {looks sharper.} Rad8 20. Nf3 Qxf5 21. Ng5) 19... Nh5 {[%emt 0:05:20]} 20. c4 {[%emt 0:12:33]} (20. Ne3 $11) 20... Rad8 $17 {[%emt 0:03:26]} 21. Ne4 {[%emt 0:03:16]} Bxe4 {[%emt 0:09:02]} 22. Rxe4 {[%emt 0:00:04]} Qd3 {[%emt 0:02:53]} 23. Re3 {[%emt 0:12:19]} Qxc4 {[%emt 0:03:02]} 24. f5 {[%emt 0:00:36][%cal Oe5e6] [#]} Qf4 $1 {[%emt 0:08:11]} 25. Nc3 {[%emt 0:07:32]} Qxf2+ {[%emt 0:02:25]} 26. Rxf2 {[%emt 0:00:03]} Ng7 {[%emt 0:03:36] Against e6} 27. g4 {[%emt 0:01:11][%cal Bg2g4,Bg4f5,Bf5e6,Be6e7][%mdl 32]} Kf8 {[%emt 0:04:30]} 28. e6 $1 {[%emt 0:09:58]} gxf5 {[%emt 0:03:30]} 29. gxf5 {[%emt 0:00:03]} fxe6 {[%emt 0:01:12]} 30. fxe6+ {[%emt 0:00:22]} Kg8 {[%emt 0:00:06]} 31. e7 $36 {[%emt 0:04:45][%mdl 2048] White has the initiative.} Rd7 {[%emt 0:03:04]} 32. Ne4 $1 {[%emt 0:00:09] [#] White threatens Nf6+ and mate.} ({But not} 32. Rfe2 Nf5 33. Re5 Nh4 $17) 32... Nh5 {[%emt 0:03:54]} (32... Rdxe7 $2 33. Nf6+ Kf7 34. Nd5+ Kg8 35. Rxe7 $18) (32... Rd1+ $2 33. Kh2 Nh5 34. Rf5 Rxe7 35. Rxh5 $18) 33. Ng3 {[%emt 0:00:09]} Ng7 {[%emt 0:00:42]} 34. Ne4 {[%emt 0:00:54] Nf6+ would kill now.} Nh5 {[%emt 0:00:07]} (34... Rdxe7 $2 35. Nf6+ Kf7 36. Nd5+ Kg8 37. Rxe7 $18) (34... Rd1+ $2 35. Kh2 Nh5 36. Rf5 Rxe7 37. Rxh5 $18) 35. Rg2+ {[%emt 0:03:25]} Kh8 {[%emt 0:02:23]} 36. Ng5 {[%emt 0:00:04][%cal Rg5f7]} Ng7 $2 {[%emt 0:00:06][%mdl 8192]} (36... Kg8 $11) 37. Rf2 $2 {[%emt 0:02:32]} ({Only move:} 37. Nf7+ $18 Kg8 38. Nh6+ Kh8 39. Rf2) 37... Kg8 $1 $11 {[%emt 0:00:20]} 38. Rf8+ {[%emt 0:04:05] Weighted Error Value: White=0.27 (precise) /Black=0.10 (very precise)} ({Avoid the trap} 38. Rf7 $2 h6 39. Rf8+ Rxf8 40. exf8=Q+ Kxf8 $19) (38. Ne4 $1 $11 {remains equal.} Nh5) 1/2-1/2

[Event "26th Hit Open-A 2022"]
[Site "Nova Gorica"]
[Date "2022.09.21"]
[Round "8.25"]
[White "Bauer, Thomas"]
[Black "Charaus, Florian"]
[Result "1-0"]
[ECO "B11"]
[WhiteElo "2200"]
[BlackElo "1993"]
[Annotator "TA"]
[PlyCount "77"]
[EventDate "2022.09.16"]
[EventType "swiss"]
[EventCountry "SLO"]
[SourceTitle "playchess.com"]
[Source "ChessBase"]
[SourceQuality "1"]
[TimeControl "5400+30"]

{[%evp 13,77,18,19,9,19,10,16,14,8,0,16,17,18,0,0,-1,-7,-11,-12,-12,25,10,37,43,119,65,58,52,121,117,112,113,121,123,174,142,191,149,264,210,195,81,96,101,109,104,139,124,135,129,145,151,159,180,192,187,160,38,192,192,192,192,1982,1320,1992,1908]} 1. e4 {[%emt 0:00:09]} c6 {[%emt 0:00:04]} 2. Nf3 {[%emt 0:00:19]} d5 {[%emt 0:00:14]} 3. Nc3 {[%emt 0:00:09]} dxe4 {[%emt 0:00:07]} 4. Nxe4 {[%emt 0:00:06]} Nf6 {[%emt 0:00:03]} 5. Nxf6+ {[%emt 0:01:10]} exf6 {[%emt 0:00:07]} 6. Bc4 {[%emt 0:00:07]} Bd6 {[%emt 0:00:10]} 7. Qe2+ {[%emt 0:00:05]} Qe7 {[%emt 0:00:10]} 8. Qxe7+ {[%emt 0:00:39] B11: Caro-Kann: Two Knights Variation.} Bxe7 {[%emt 0:00:10]} 9. O-O {[%emt 0:04:35]} O-O {[%emt 0:07:48]} 10. h3 {[%emt 0:04:34] [#] The position is equal.} Nd7 $146 {[%emt 0:00:52][%cal Bb8d7,Bd7b6,Bb6a4,Ba4c3][%mdl 32]} ({Predecessor:} 10... Bd6 11. d4 Bf5 12. c3 Nd7 13. Re1 Rfe8 14. Bd2 b5 15. Bb3 Be4 16. Nh2 Nb6 {0-1 (74) Urazayev,A (2451)-Rozman,L (2362) Chess.com INT 2021}) 11. d4 {[%emt 0:01:05]} Bd6 {[%emt 0:02:40]} 12. Re1 {[%emt 0:00:29]} Nb6 {[%emt 0:07:25]} 13. Be2 {[%emt 0:06:02]} Re8 {[%emt 0:01:53]} 14. c4 {[%emt 0:02:20] [#] And now c5 would win.} Bb4 {[%emt 0:00:13]} 15. Bd2 {[%emt 0:00:42]} Bxd2 {[%emt 0:00:16]} 16. Nxd2 {[%emt 0:00:02][%cal Bf3d2,Bd2b3,Bb3a5,Ba5b7,Bb7c5][%mdl 32]} Bf5 {[%emt 0:00:10]} 17. Nb3 {[%emt 0:28:44]} Na4 {[%emt 0:23:44]} 18. Na5 {[%emt 0:00:47]} Rad8 {[%emt 0:08:16]} (18... b6 $14 19. Nxc6 Nxb2) 19. b3 {[%emt 0:08:36]} (19. Bf3 $16) 19... Nc3 $14 {[%emt 0:00:53]} 20. Bf3 {[%emt 0:00:02]} Kf8 {[%emt 0:12:40]} (20... Bc8 $14) 21. Nxb7 $16 {[%emt 0:04:26]} Rxe1+ {[%emt 0:03:10]} 22. Rxe1 {[%emt 0:00:14]} Rxd4 {[%emt 0:00:03]} 23. Bxc6 {[%emt 0:01:19][%csl Gc6][%cal Re1e8]} g5 {[%emt 0:02:58]} (23... Be6 $16 24. a3 g6) 24. a4 {[%emt 0:01:34][%cal Ba2a4,Ba4a5][%mdl 32]} Bc2 {[%emt 0:02:09]} (24... h5 $16 25. Re8+ Kg7) 25. Nc5 {[%emt 0:00:35] Black must now prevent Re8+.} Rd2 {[%emt 0:00:57]} (25... Rd1 $16 {might work better.} 26. Kf1 Rd6) 26. a5 {[%emt 0:04:06] aiming for Re8+.} Ne2+ {[%emt 0:05:33]} 27. Kf1 {[%emt 0:01:21]} (27. Kh2 $18 {is more deadly.}) 27... Nd4 {[%emt 0:00:04][%csl LRb3,LRc6]} 28. Ba4 {[%emt 0:00:53]} h5 {[%emt 0:02:20]} 29. a6 {[%emt 0:08:52]} f5 {[%emt 0:00:39]} 30. b4 {[%emt 0:01:42]} Bxa4 {[%emt 0:00:48]} 31. Nxa4 {[%emt 0:00:01][%mdl 4096] Endgame Hoping for b5. KRN-KRN} Ra2 {[%emt 0:00:10]} 32. Nc5 {[%emt 0:00:54] b5 is the strong threat.} Rc2 {[%emt 0:00:05]} 33. Nd7+ {[%emt 0:04:28]} Kg7 {[%emt 0:00:35]} 34. Ne5 {[%emt 0:04:29]} ({Resist} 34. c5 $6 Rb2 $14) 34... f6 {[%emt 0:03:06] [#]} 35. Nf3 {[%emt 0:00:01]} (35. Nd3 $1 $16) 35... Rxc4 $2 {[%emt 0:04:50] A mistake that costs the game.} ({Black should play} 35... Nxf3 $14 36. gxf3 Kf7) 36. Nxd4 $18 {[%emt 0:00:35]} ({Don't do} 36. Re7+ Kf8 37. Rxa7 Rc1+ 38. Ne1 Ra1 $16) 36... Rxd4 {[%emt 0:00:23]} 37. Re7+ {[%emt 0:00:01]} Kg8 $2 {[%emt 0:00:31]} (37... Kg6 38. Rxa7 Rxb4) 38. Rb7 {[%emt 0:00:02]} Rd2 {[%emt 0:01:17]} 39. Rxa7 {[%emt 0:00:52] Weighted Error Value: White=0.23 (precise) /Black=0.30} 1-0

[Event "26th Hit Open-A 2022"]
[Site "Nova Gorica"]
[Date "2022.09.21"]
[Round "8.26"]
[White "Lohia, Sohum"]
[Black "Hercog, Nusa"]
[Result "1/2-1/2"]
[ECO "B12"]
[WhiteElo "2185"]
[BlackElo "2019"]
[Annotator "TA"]
[PlyCount "101"]
[EventDate "2022.09.16"]
[EventType "swiss"]
[EventCountry "SLO"]
[SourceTitle "playchess.com"]
[Source "ChessBase"]
[SourceQuality "1"]
[TimeControl "5400+30"]

{[%evp 9,101,6,14,12,18,16,14,15,22,11,7,0,0,0,0,0,0,-14,12,20,19,18,15,21,26,15,21,18,35,43,71,62,74,74,103,72,77,90,82,49,63,20,63,36,175,71,74,70,68,67,60,80,60,58,119,127,137,52,53,60,45,31,52,0,0,0,9,0,0,0,0,0,0,-2,0,0,46,52,58,24,118,111,112,3,3,0,0,0,3,0,0,0,8,0]} 1. e4 {[%emt 0:00:10]} c6 {[%emt 0:00:09]} 2. d4 {[%emt 0:00:14]} d5 {[%emt 0:00:08]} 3. e5 {[%emt 0:00:07]} Bf5 {[%emt 0:00:11]} 4. h4 {[%emt 0:00:22]} h5 {[%emt 0:00:29]} 5. Bd3 {[%emt 0:00:15]} Bxd3 {[%emt 0:00:30]} 6. Qxd3 {[%emt 0:00:08][%cal Oe5e6] B12: Caro-Kann: Advance Variation.} Qa5+ {[%emt 0:00:38]} 7. Nd2 {[%emt 0:00:10][%cal Oe5e6]} e6 {[%emt 0:00:56]} 8. Ngf3 {[%emt 0:00:10]} Nh6 {[%emt 0:00:33]} 9. O-O {[%emt 0:00:11]} Nf5 {[%emt 0:00:40]} 10. a4 {[%emt 0:00:19]} Qa6 {[%emt 0:00:19]} 11. c4 {[%emt 0:00:59]} Bb4 {[%emt 0:00:20]} 12. b3 {[%emt 0:00:40]} c5 {[%emt 0:00:30]} 13. Qb1 {[%emt 0:02:01]} Nxd4 {[%emt 0:06:38]} 14. Nxd4 {[%emt 0:00:12]} cxd4 {[%emt 0:00:04]} 15. cxd5 {[%emt 0:00:15]} exd5 {[%emt 0:00:07]} 16. Nf3 {[%emt 0:00:33] [#]} O-O $146 {[%emt 0:02:11]} ({Predecessor:} 16... Qg6 17. Qxg6 fxg6 18. Bb2 Nc6 19. Nxd4 Nxd4 20. Bxd4 Ke7 21. Rfd1 Rhc8 22. Rd3 Rc6 {½-½ (45) Praggnanandhaa,R (2612)-Keymer,V (2664) chess24.com INT 2022}) 17. Nxd4 {[%emt 0:01:06]} Nc6 {[%emt 0:11:38]} 18. Nf3 {[%emt 0:07:06]} Ne7 {[%emt 0:05:45]} 19. Rd1 {[%emt 0:08:18]} Rfd8 {[%emt 0:05:57][%cal Od5d4]} 20. Bg5 {[%emt 0:01:22][%cal Oa4a5]} ({Much worse is} 20. Ng5 Qg6 $11) 20... Qe6 {[%emt 0:04:14]} 21. Qd3 {[%emt 0:04:20]} Rd7 {[%emt 0:02:13]} 22. Bxe7 {[%emt 0:02:43]} Bxe7 {[%emt 0:01:54]} 23. Rac1 {[%emt 0:04:32]} g6 {[%emt 0:04:44]} 24. Qd4 {[%emt 0:01:47]} a5 {[%emt 0:05:35]} 25. Qf4 {[%emt 0:01:30]} Kg7 {[%emt 0:09:21]} 26. Nd4 {[%emt 0:02:40]} Qb6 {[%emt 0:01:54]} (26... Qg4 $14 27. Qxg4 hxg4) 27. e6 {[%emt 0:22:56]} (27. g4 $18) 27... fxe6 $16 {[%emt 0:02:44]} 28. Re1 {[%emt 0:05:10]} Rd6 {[%emt 0:08:04]} 29. Qe5+ {[%emt 0:04:39]} Bf6 $1 {[%emt 0:08:04]} 30. Nxe6+ {[%emt 0:00:57]} Kf7 {[%emt 0:00:12]} 31. Ng5+ {[%emt 0:00:50]} Kg7 {[%emt 0:06:43] [#]} (31... Kg8 $14 32. Qg3 Bxg5 33. Qxg5 (33. hxg5 Rd7 $14) 33... Rf8) 32. Qg3 $1 {[%emt 0:01:49][%cal Oc1c7] White is more active.} Bxg5 {[%emt 0:04:16]} 33. hxg5 {[%emt 0:04:58]} (33. Qxg5 $16 {White wants to mate with Re7+.} Rf6 34. Re7+ Kf8 35. Re3) 33... Rd7 $14 {[%emt 0:01:27] Prevents Re7+.} 34. Qc3+ {[%emt 0:03:53]} Kh7 {[%emt 0:01:17]} 35. Rc2 {[%emt 0:06:05]} Rf8 {[%emt 0:01:15]} 36. Qg3 {[%emt 0:01:50]} ({White should play} 36. g3 $14) 36... d4 $11 {[%emt 0:01:39]} 37. Qd3 {[%emt 0:01:26]} Qd6 {[%emt 0:01:01]} 38. Rce2 {[%emt 0:00:53]} Qf4 {[%emt 0:01:33]} 39. Re7+ {[%emt 0:07:53]} Rf7 {[%emt 0:00:38]} 40. Rxf7+ {[%emt 0:01:20]} Rxf7 {[%emt 0:00:09][%mdl 4096] Endgame KQR-KQR} 41. f3 {[%emt 0:00:44]} Qxg5 {[%emt 0:01:00]} 42. Qxd4 {[%emt 0:00:39]} Rc7 {[%emt 0:03:06]} (42... Rxf3 $11 43. Qd7+ Kh6) 43. Re8 $1 $14 {[%emt 0:01:36][%csl Gd4][%cal Re8h8] [#]} Rg7 {[%emt 0:00:32]} 44. Qc3 {[%emt 0:01:03] Strongly threatening Qc8.} Qf5 {[%emt 0:00:19]} (44... Qf4 $11) 45. Re5 $16 {[%emt 0:00:34]} Qf4 {[%emt 0:00:29]} 46. Qxa5 {[%emt 0:01:13]} (46. Rxa5 $16 {With the idea Re5.} Rc7 47. Rc5 Rxc5 48. Qxc5) 46... Qd4+ $11 {[%emt 0:00:31] The position is equal.} 47. Kh2 {[%emt 0:00:20]} Qh4+ {[%emt 0:00:06]} 48. Kg1 {[%emt 0:00:01] Black must now prevent Qd2.} Qd4+ {[%emt 0:00:01]} 49. Kh2 {[%emt 0:00:45] Re4 is the strong threat.} Qh4+ {[%emt 0:00:03]} 50. Kg1 {[%emt 0:00:02] aiming for Qd2.} Qd4+ {[%emt 0:00:01]} 51. Kh2 {[%emt 0:01:40] Weighted Error Value: White=0.18 (very precise) /Black=0.15 (very precise)} 1/2-1/2

[Event "26th Hit Open-A 2022"]
[Site "Nova Gorica"]
[Date "2022.09.21"]
[Round "8.27"]
[White "Rozman, Monika"]
[Black "Cirkvencic, Franci"]
[Result "1-0"]
[ECO "B20"]
[WhiteElo "2111"]
[BlackElo "1987"]
[Annotator "TA"]
[PlyCount "117"]
[EventDate "2022.09.16"]
[EventType "swiss"]
[EventCountry "SLO"]
[SourceTitle "playchess.com"]
[Source "ChessBase"]
[SourceQuality "1"]
[TimeControl "5400+30"]

{[%evp 16,117,18,-2,20,-7,22,15,0,5,13,11,31,14,14,23,16,0,0,0,0,0,0,0,0,0,0,0,-5,-5,0,-141,-10,-10,-10,-10,-10,-10,-3,-8,-8,-6,30,29,37,29,25,27,83,83,85,83,95,104,189,204,216,210,299,332,422,408,384,294,541,532,537,533,607,652,715,698,821,843,1058,917,12848,9434,5275,5444,29970,29971,29971,29973,29972,29971,29968,29971,29960,29962,29980,29980,29980,29981,29983,29980,29982,29983,29983,29984,29984,29985,29985,29986]} 1. e4 {[%emt 0:00:03]} c5 {[%emt 0:00:13]} 2. d3 {[%emt 0:00:03]} Nc6 {[%emt 0:00:58]} 3. g3 {[%emt 0:00:04]} g6 {[%emt 0:00:22]} 4. Bg2 {[%emt 0:00:06]} Bg7 {[%emt 0:00:16]} 5. f4 {[%emt 0:00:03]} d6 {[%emt 0:01:15]} 6. Nf3 {[%emt 0:00:15]} e6 {[%emt 0:01:01]} 7. O-O {[%emt 0:00:31]} Nge7 {[%emt 0:00:29]} 8. c3 {[%emt 0:00:13]} O-O {[%emt 0:00:46]} 9. Na3 {[%emt 0:00:27]} b6 {[%emt 0:01:42] B20: Sicilian: Unusual White 2nd moves.} 10. Nc2 {[%emt 0:02:20]} Ba6 {[%emt 0:00:57]} 11. Re1 {[%emt 0:04:20]} Qd7 {[%emt 0:07:30] The position is equal.} 12. d4 {[%emt 0:02:29]} cxd4 {[%emt 0:00:28] [#]} 13. Nfxd4 $146 {[%emt 0:02:14]} (13. Ncxd4 {keeps more tension.} Nxd4 14. Nxd4 e5 15. fxe5 dxe5 16. Nf5) ({Predecessor:} 13. cxd4 Na5 14. b3 Rac8 15. Ba3 Rfe8 16. Ne3 Bb7 17. e5 Bxf3 18. Bxf3 d5 19. Be2 {0-1 (46) Rustemov,A (2532)-Bischoff,K (2561) Germany 2010}) 13... Rac8 {[%emt 0:04:41]} 14. Nxc6 {[%emt 0:02:54]} Nxc6 {[%emt 0:00:21][%cal Be7c6,Bc6a5,Ba5c4][%mdl 32]} 15. Be3 {[%emt 0:01:45]} Rfd8 {[%emt 0:01:09]} 16. Qd2 {[%emt 0:02:09]} Na5 {[%emt 0:02:32]} 17. Rad1 {[%emt 0:00:54]} Nc4 {[%emt 0:02:04][%csl LRb2,LRd2]} 18. Qc1 {[%emt 0:00:04]} Qb5 {[%emt 0:08:47]} 19. Bf1 {[%emt 0:04:52] aiming for b3.} Qxb2 {[%emt 0:02:01]} 20. Qxb2 {[%emt 0:01:19]} Nxb2 {[%emt 0:00:08]} 21. Bxa6 {[%emt 0:00:15]} Nxd1 {[%emt 0:00:12]} 22. Rxd1 {[%emt 0:05:12]} Rxc3 {[%emt 0:00:36]} 23. Bd3 {[%emt 0:00:07]} (23. Rd2 $11) 23... Rdc8 {[%emt 0:05:56]} (23... d5 $1 $17 {[%cal Rd5e4] Threatens to win with ...dxe4.} 24. e5 Rdc8) 24. Nd4 $11 {[%emt 0:02:13]} Bxd4 {[%emt 0:03:11]} 25. Bxd4 {[%emt 0:00:13]} Rc1 {[%emt 0:00:06]} 26. Rf1 {[%emt 0:03:44]} Kf8 {[%emt 0:12:09]} 27. Bb2 {[%emt 0:05:17] This bishop pair is nice.} Rxf1+ {[%emt 0:08:14]} 28. Kxf1 {[%emt 0:00:06]} d5 {[%emt 0:01:50]} 29. exd5 {[%emt 0:05:13]} exd5 {[%emt 0:00:08][%cal Ob6b5]} 30. Ke2 {[%emt 0:00:35]} Re8+ {[%emt 0:18:01]} 31. Kd2 {[%emt 0:00:34][%mdl 1024] White has compensation.} Kg8 {[%emt 0:00:46]} (31... Ke7 $11 {keeps the balance.}) 32. Bb5 $16 {[%emt 0:08:23] White is more active. White now steadily converts the win.} Re6 {[%emt 0:01:42]} 33. Bc3 {[%emt 0:00:59]} h6 {[%emt 0:03:13]} 34. Kd3 {[%emt 0:00:25]} d4 {[%emt 0:01:43]} (34... Re4 $16 35. Bc6 Kf8 36. Bxd5 Re8) 35. Kxd4 $18 {[%emt 0:06:42]} Rd6+ {[%emt 0:00:30]} 36. Ke5 {[%emt 0:02:03]} Rd1 {[%emt 0:00:07] [#]} (36... Re6+ {keeps fighting.} 37. Kd5 Re3) 37. Kf6 $1 {[%emt 0:01:22]} Rd6+ {[%emt 0:01:40] [#]} 38. Ke7 $1 {[%emt 0:00:39]} Re6+ {[%emt 0:00:25]} 39. Kd7 {[%emt 0:00:29] And now Be5 would win.} Re3 $2 {[%emt 0:02:45]} (39... Re4 40. Be5 a6) 40. Be5 {[%emt 0:00:33]} Kf8 {[%emt 0:00:24]} 41. a4 {[%emt 0:04:19][%cal Ba2a4,Ba4a5][%mdl 32]} Re4 {[%emt 0:02:03]} 42. Kc7 {[%emt 0:00:35]} a6 {[%emt 0:03:08]} 43. Bc6 {[%emt 0:00:11]} Re2 {[%emt 0:00:08]} 44. Kxb6 {[%emt 0:01:10]} Rxh2 {[%emt 0:00:09]} 45. Kxa6 {[%emt 0:03:20] Black must now prevent Kb6.} Rh3 {[%emt 0:00:11]} 46. a5 {[%emt 0:00:39] White wants to mate with Kb7.} Rxg3 {[%emt 0:00:07]} 47. Kb6 {[%emt 0:00:10] Intending Bb5 and mate.} Rb3+ {[%emt 0:00:26]} 48. Bb5 {[%emt 0:00:20] White mates.} Ke7 {[%emt 0:00:29]} 49. a6 {[%emt 0:00:56]} Ra3 {[%emt 0:00:51]} 50. a7 {[%emt 0:03:44]} Rxa7 {[%emt 0:00:08]} 51. Kxa7 {[%emt 0:00:01]} f6 {[%emt 0:00:30]} 52. Bc7 {[%emt 0:03:00]} f5 {[%emt 0:02:18]} 53. Kb6 {[%emt 0:00:57]} g5 {[%emt 0:00:10]} 54. Kc5 {[%emt 0:00:14]} Kf6 {[%emt 0:00:58]} 55. Kd4 {[%emt 0:01:00]} gxf4 {[%emt 0:02:17]} 56. Bxf4 {[%emt 0:00:15]} h5 {[%emt 0:00:14]} 57. Bf1 {[%emt 0:00:41]} Ke6 {[%emt 0:00:49]} 58. Bh3 {[%emt 0:00:11]} Kf6 {[%emt 0:00:06]} 59. Kd5 {[%emt 0:00:04] Weighted Error Value: White=0.07 (flawless) /Black=0.34} 1-0